bitfinex-derivatives/quotes_BTCF0:USTF0_20250704
["timestamp","ask_amount","ask_price","bid_price","bid_amount"]
[1751638525043,1.44887744,107780.0,107770.0,0.94395643]
[1751638525343,1.44887744,107780.0,107770.0,0.56911436]
[1751638525541,1.47887744,107780.0,107770.0,0.56911436]
[1751638525947,1.29337644,107780.0,107770.0,0.56911436]
[1751638526143,1.26393644,107780.0,107770.0,1.32665643]
[1751638526444,0.36804823,107780.0,107770.0,1.32665643]
[1751638526747,1.26432823,107780.0,107770.0,0.97665643]
[1751638527046,1.44982923,107780.0,107770.0,0.56911436]
[1751638527840,1.26432823,107780.0,107770.0,0.56911436]
[1751638528648,1.26432823,107780.0,107770.0,0.97665643]
[1751638529043,1.26432823,107780.0,107770.0,0.27149646]
[1751638529044,2.6217793,107780.0,107770.0,0.27149646]
[1751638529247,0.1855182,107770.0,107760.0,0.4399]
[1751638529547,0.1855526,107750.0,107740.0,0.01790395]
[1751638529742,2.14752906,107750.0,107740.0,0.04691216]
[1751638529946,2.21092906,107750.0,107740.0,0.01691216]
[1751638530342,2.21092906,107750.0,107740.0,0.20248196]
[1751638530542,2.21092906,107750.0,107740.0,0.21248196]
[1751638531149,2.61847113,107750.0,107740.0,0.21248196]
[1751638531751,1.87092906,107750.0,107740.0,0.21248196]
[1751638531952,2.24092906,107750.0,107740.0,0.21248196]
[1751638532246,2.27847113,107750.0,107740.0,0.21248196]
[1751638532440,0.97104906,107750.0,107740.0,0.50248196]
[1751638532642,1.83758906,107750.0,107740.0,0.91002403]
[1751638532842,2.18758906,107750.0,107740.0,0.56698196]
[1751638533247,2.18858906,107750.0,107740.0,0.56898196]
[1751638533448,1.28894906,107750.0,107740.0,0.56898196]
[1751638533648,0.72309646,107750.0,107740.0,0.97652403]
[1751638533847,2.56115113,107750.0,107740.0,0.60038196]
[1751638534052,2.56115113,107750.0,107740.0,0.50448196]
[1751638534354,2.21720906,107750.0,107740.0,0.50448196]
[1751638534749,0.97224906,107750.0,107740.0,0.50448196]
[1751638535046,2.25764896,107750.0,107740.0,0.91202403]
[1751638535253,2.00845646,107750.0,107740.0,0.53718833]
[1751638535449,0.72309646,107750.0,107740.0,1.0100304]
[1751638535654,1.62829646,107750.0,107740.0,1.0100304]
[1751638535849,1.62817646,107750.0,107740.0,1.0100304]
[1751638536254,1.26741646,107750.0,107740.0,1.0100304]
[1751638536456,1.26841646,107750.0,107740.0,1.0130304]
[1751638537345,1.63841646,107750.0,107740.0,1.0130304]
[1751638537545,1.26841646,107750.0,107740.0,1.0130304]
[1751638537747,0.00249646,107750.0,107740.0,1.0130304]
[1751638537946,0.00249646,107750.0,107740.0,1.3738304]
[1751638538158,0.93678,107760.0,107750.0,0.1855525]
[1751638538453,0.93678,107760.0,107750.0,0.91309457]
[1751638538653,1.30678,107760.0,107750.0,0.5361525]
[1751638539045,1.30678,107760.0,107750.0,0.94369457]
[1751638539250,0.93678,107760.0,107750.0,0.96157875]
[1751638539650,0.93726,107760.0,107750.0,0.96257875]
[1751638540747,0.41343392,107780.0,107770.0,0.1855181]
[1751638541060,1.31536213,107780.0,107770.0,0.86355663]
[1751638541253,0.1411093,107800.0,107780.0,0.1855009]
[1751638541254,0.3628,107800.0,107780.0,0.1855009]
[1751638541454,1.38405662,107830.0,107810.0,0.1854493]
[1751638541455,0.44148054,107820.0,107810.0,0.1854493]
[1751638541649,0.82148054,107820.0,107810.0,0.4754493]
[1751638541954,0.82148054,107820.0,107810.0,1.2440396]
[1751638541955,0.10068054,107820.0,107810.0,1.2440396]
[1751638542152,0.5482002,107840.0,107830.0,0.1854149]
[1751638542343,1.62744,107840.0,107830.0,0.4754149]
[1751638542549,1.62744,107840.0,107830.0,0.47566313]
[1751638542550,0.7236,107840.0,107830.0,0.47566313]
[1751638542755,1.8126777,107840.0,107830.0,0.47566313]
[1751638543351,2.22021977,107840.0,107830.0,0.47566313]
[1751638543557,1.34863977,107840.0,107830.0,0.07024823]
[1751638543750,2.25199977,107840.0,107830.0,0.07024823]
[1751638544056,2.25999977,107840.0,107830.0,0.25766313]
[1751638544251,2.29189977,107840.0,107830.0,0.46766313]
[1751638544455,0.9809977,107840.0,107830.0,0.46766313]
[1751638544854,1.69896,107840.0,107830.0,0.46766313]
[1751638545054,0.5106,107840.0,107830.0,0.46866313]
[1751638545251,0.3758,107840.0,107830.0,0.8762052]
[1751638545454,0.3758,107840.0,107830.0,1.3005052]
[1751638545455,0.015,107840.0,107830.0,1.3005052]
[1751638545956,0.015,107840.0,107830.0,1.56030514]
[1751638546153,0.200398,107840.0,107830.0,0.54299107]
[1751638546360,1.527278,107840.0,107830.0,0.54299107]
[1751638546555,1.937278,107840.0,107830.0,0.54299107]
[1751638546751,2.34482007,107840.0,107830.0,0.28324823]
[1751638547065,0.1854149,107830.0,107820.0,0.03772457]
[1751638547248,1.39675697,107830.0,107820.0,0.28772457]
[1751638548157,1.39675697,107830.0,107820.0,0.02772457]
[1751638548355,1.40075697,107830.0,107820.0,0.02872457]
[1751638548653,1.02075697,107830.0,107820.0,0.01872457]
[1751638548852,0.2781658,107820.0,107810.0,0.1854493]
[1751638549058,1.5749458,107820.0,107810.0,0.4854493]
[1751638549255,1.6058458,107820.0,107810.0,0.4854493]
[1751638549459,2.01338787,107820.0,107810.0,0.3]
[1751638549759,1.6058458,107820.0,107810.0,0.4854493]
[1751638550554,1.6148458,107820.0,107810.0,0.4874493]
[1751638551054,2.37238787,107820.0,107810.0,0.4874493]
[1751638551961,1.9748458,107820.0,107810.0,0.302]
[1751638552159,2.35238787,107820.0,107810.0,0.302]
[1751638553261,2.40238787,107820.0,107810.0,0.302]
[1751638553460,2.40238787,107820.0,107810.0,0.4874493]
[1751638553760,1.9748458,107820.0,107810.0,0.4874493]
[1751638553957,1.7042458,107820.0,107810.0,0.4874493]
[1751638554454,1.6142458,107820.0,107810.0,0.4874493]
[1751638554654,1.9837258,107820.0,107810.0,0.4874493]
[1751638555165,2.39126787,107820.0,107810.0,0.4874493]
[1751638555467,2.39126787,107820.0,107810.0,0.012]
[1751638555664,0.1854837,107790.0,107780.0,0.3245991]
[1751638555963,1.4490837,107790.0,107780.0,0.6145991]
[1751638556160,1.5127837,107790.0,107780.0,0.63107833]
[1751638556563,1.5127837,107790.0,107780.0,0.70385285]
[1751638556862,1.1519837,107790.0,107780.0,0.70385285]
[1751638557059,1.1519837,107790.0,107780.0,1.50549492]
[1751638557060,1.1533037,107790.0,107780.0,1.50549492]
[1751638557255,1.1533037,107790.0,107780.0,1.17559492]
[1751638558255,1.1543037,107790.0,107780.0,1.17659492]
[1751638558456,1.5151037,107790.0,107780.0,0.72267845]
[1751638558859,1.5151037,107790.0,107780.0,0.65947845]
[1751638559864,1.32962,107790.0,107780.0,0.65947845]
[1751638560459,0.4265,107790.0,107780.0,1.06702052]
[1751638560659,0.002,107790.0,107780.0,1.42782052]
[1751638560860,0.90328,107790.0,107780.0,1.86322052]
[1751638561063,0.3608,107800.0,107790.0,0.1854837]
[1751638561259,0.90232,107800.0,107790.0,1.65228309]
[1751638561561,0.3925,107820.0,107810.0,0.1854493]
[1751638561765,1.4800121,107820.0,107810.0,0.49304496]
[1751638561958,1.32628,107820.0,107810.0,0.49304496]
[1751638562164,1.26328,107830.0,107820.0,0.185432]
[1751638562358,0.065,107840.0,107830.0,0.1854148]
[1751638562561,0.93662,107840.0,107830.0,0.88295687]
[1751638562866,0.93662,107840.0,107830.0,0.5375148]
[1751638563065,0.0333,107840.0,107830.0,1.29505687]
[1751638563266,0.90512,107840.0,107830.0,1.65585687]
[1751638563464,0.90512,107840.0,107830.0,1.68685687]
[1751638563860,0.002,107840.0,107830.0,0.9293148]
[1751638564163,0.002,107840.0,107830.0,1.2993148]
[1751638564364,0.002,107840.0,107830.0,1.70685687]
[1751638564569,0.007,107840.0,107830.0,1.33785687]
[1751638564762,0.007,107840.0,107830.0,1.70785687]
[1751638565061,0.016,107840.0,107830.0,1.71985687]
[1751638565270,0.016,107840.0,107830.0,1.33985687]
[1751638565465,0.007,107840.0,107830.0,1.64785687]
[1751638565665,0.014,107840.0,107830.0,1.64885687]
[1751638565866,0.014,107840.0,107830.0,2.14885687]
[1751638566067,0.014,107840.0,107830.0,1.83885687]
[1751638566265,0.014,107840.0,107830.0,1.0705148]
[1751638566464,0.6259977,107840.0,107830.0,0.9774148]
[1751638566767,2.31510816,107840.0,107830.0,0.502]
[1751638567074,2.72265023,107840.0,107830.0,0.502]
[1751638567259,2.31510816,107840.0,107830.0,0.502]
[1751638567461,2.50776223,107840.0,107830.0,0.502]
[1751638567661,0.1854493,107810.0,107800.0,0.2781912]
[1751638567866,2.18715137,107810.0,107800.0,0.4181912]
[1751638568064,2.28535137,107810.0,107800.0,0.3718251]
[1751638568470,1.5478093,107810.0,107800.0,0.3718251]
[1751638568971,1.5488093,107810.0,107800.0,0.3718251]
[1751638569575,1.5548093,107810.0,107800.0,0.3728251]
[1751638569769,0.466,107810.0,107800.0,0.3928251]
[1751638569975,0.1854149,107830.0,107820.0,0.1854321]
[1751638570172,0.4982815,107830.0,107820.0,0.72597731]
[1751638570470,1.4356815,107830.0,107820.0,0.28773524]
[1751638570665,1.87462357,107830.0,107820.0,0.30773524]
[1751638570867,2.19462357,107830.0,107820.0,0.30773524]
[1751638571065,2.19462357,107830.0,107820.0,0.29773524]
[1751638571267,2.19462357,107830.0,107820.0,0.08773524]
[1751638571471,0.2318298,107810.0,107800.0,0.30566812]
[1751638571667,1.8691498,107810.0,107800.0,0.62203422]
[1751638571873,0.7942,107810.0,107800.0,0.95573097]
[1751638572065,0.97888,107810.0,107800.0,0.95573097]
[1751638572265,0.0726,107810.0,107800.0,0.95573097]
[1751638572470,0.94796,107810.0,107800.0,0.95573097]
[1751638572666,0.93796,107810.0,107800.0,1.01803097]
[1751638573074,0.0312,107810.0,107800.0,0.6104889]
[1751638573270,0.44483394,107820.0,107810.0,0.18545]
[1751638573472,1.53694674,107820.0,107810.0,0.50545]
[1751638573867,1.53694674,107820.0,107810.0,0.50569823]
[1751638574470,1.35151394,107820.0,107810.0,0.50569823]
[1751638575264,0.38203394,107820.0,107810.0,0.9142403]
[1751638575469,1.28859394,107820.0,107810.0,0.53799823]
[1751638575668,1.28791394,107820.0,107810.0,0.9778403]
[1751638576268,0.92711394,107820.0,107810.0,0.9778403]
[1751638576475,0.92711394,107820.0,107810.0,1.05168562]
[1751638576976,1.47834714,107820.0,107810.0,0.50769823]
[1751638577170,1.54144714,107820.0,107810.0,0.50769823]
[1751638577773,0.45013394,107820.0,107810.0,0.9152403]
[1751638578075,1.35625394,107820.0,107810.0,0.9152403]
[1751638578471,1.35625394,107820.0,107810.0,0.9484403]
[1751638579274,1.54168714,107820.0,107810.0,0.9484403]
[1751638580071,1.54168714,107820.0,107810.0,0.32224823]
[1751638580273,2.31012921,107820.0,107810.0,0.00224823]
[1751638580974,2.31012921,107820.0,107810.0,0.18769873]
[1751638581176,1.93258714,107820.0,107810.0,0.23769873]
[1751638581376,2.69314491,107820.0,107780.0,0.12022072]
[1751638581679,0.1855021,107780.0,107770.0,0.34197811]
[1751638581874,1.4519821,107780.0,107770.0,0.4982755]
[1751638582076,1.4519821,107780.0,107770.0,0.98068086]
[1751638582077,1.32958,107780.0,107770.0,0.98068086]
[1751638582277,1.5150821,107780.0,107770.0,0.98068086]
[1751638582477,2.27262417,107780.0,107770.0,0.20284261]
[1751638582870,2.27262417,107780.0,107770.0,0.01733961]
[1751638583885,2.27362417,107780.0,107770.0,0.01833961]
[1751638584178,1.8660821,107780.0,107770.0,0.20385891]
[1751638584386,1.8655221,107780.0,107770.0,0.27385891]
[1751638584588,1.8665221,107780.0,107770.0,0.27685891]
[1751638584884,1.8665221,107780.0,107770.0,0.20685891]
[1751638585076,0.6114021,107780.0,107770.0,0.20685891]
[1751638585276,0.6114021,107780.0,107770.0,0.68440098]
[1751638585479,1.5162021,107780.0,107770.0,0.33685891]
[1751638585878,0.6114021,107780.0,107770.0,0.52685891]
[1751638586178,1.3303,107780.0,107770.0,0.93440098]
[1751638586380,1.5158021,107780.0,107770.0,0.96570098]
[1751638586788,1.5158021,107780.0,107770.0,0.55815891]
[1751638586983,1.5158021,107780.0,107770.0,0.52685891]
[1751638587879,2.30334417,107780.0,107770.0,0.22685891]
[1751638588178,1.92334417,107780.0,107770.0,0.22685891]
[1751638588578,1.5158021,107780.0,107770.0,0.22685891]
[1751638590186,1.5158021,107780.0,107770.0,0.26685891]
[1751638590686,1.5158021,107780.0,107770.0,0.50685891]
[1751638593391,0.6114021,107780.0,107770.0,0.50685891]
[1751638593578,1.5126021,107780.0,107770.0,0.50685891]
[1751638595082,1.92014417,107780.0,107770.0,0.50685891]
[1751638595383,0.4071651,107810.0,107770.0,1.70968168]
[1751638595590,0.5462677,107800.0,107790.0,0.2494894]
[1751638595891,0.5462677,107800.0,107790.0,0.95753147]
[1751638596092,0.4238,107800.0,107790.0,0.95753147]
[1751638596283,0.6092677,107800.0,107790.0,0.5499894]
[1751638596580,0.4238,107800.0,107790.0,0.95753147]
[1751638596786,1.4779677,107800.0,107790.0,0.5833894]
[1751638596982,1.4809677,107800.0,107790.0,0.5204894]
[1751638597180,1.5133677,107800.0,107790.0,0.5204894]
[1751638597780,1.5153677,107800.0,107790.0,0.5214894]
[1751638597977,2.30290977,107800.0,107790.0,0.2051303]
[1751638598180,1.5153677,107800.0,107790.0,0.2051303]
[1751638598376,0.6137677,107800.0,107790.0,0.90267237]
[1751638598582,1.5161277,107800.0,107790.0,0.90267237]
[1751638598783,0.3658,107800.0,107790.0,0.93567237]
[1751638598986,1.26792,107800.0,107790.0,0.96877237]
[1751638599183,1.26792,107800.0,107790.0,0.5612303]
[1751638599379,1.26792,107800.0,107790.0,0.96877237]
[1751638600282,1.26792,107800.0,107790.0,1.04261769]
[1751638600490,1.26792,107800.0,107790.0,1.54261769]
[1751638601190,0.90712,107800.0,107790.0,1.90341769]
[1751638601389,0.005,107800.0,107790.0,1.90341769]
[1751638601591,0.3608,107810.0,107800.0,0.1854676]
[1751638601793,0.01923394,107820.0,107810.0,0.1854504]
[1751638601984,0.92047394,107820.0,107810.0,0.96369715]
[1751638602293,0.01923394,107820.0,107810.0,0.96369715]
[1751638602591,0.01923394,107820.0,107810.0,1.74834247]
[1751638602790,0.3628,107840.0,107830.0,0.20325305]
[1751638602986,0.90296,107840.0,107830.0,0.93079512]
[1751638603188,0.90296,107840.0,107830.0,0.99299512]
[1751638603380,0.002,107840.0,107830.0,0.99299512]
[1751638603581,0.92084247,107850.0,107840.0,0.1853987]
[1751638603787,0.0319,107860.0,107850.0,0.1853815]
[1751638603981,0.09,107860.0,107850.0,1.34221443]
[1751638604286,1.31279624,107870.0,107860.0,0.1853644]
[1751638604492,1.31254801,107870.0,107860.0,0.93450293]
[1751638604791,0.41142801,107870.0,107860.0,0.93450293]
[1751638604987,1.49785521,107870.0,107860.0,0.93450293]
[1751638605186,1.49785521,107870.0,107860.0,0.52696086]
[1751638605388,1.49785521,107870.0,107860.0,0.93450293]
[1751638606096,1.52915521,107870.0,107860.0,0.52696086]
[1751638606485,1.52915521,107870.0,107860.0,0.46586086]
[1751638606892,1.54215521,107870.0,107860.0,0.46786086]
[1751638607493,0.64107521,107870.0,107860.0,0.28249646]
[1751638607793,1.88127521,107870.0,107860.0,0.00249646]
[1751638608096,2.28881728,107870.0,107860.0,0.00249646]
[1751638608487,0.1853644,107860.0,107850.0,0.01739086]
[1751638608693,1.34460293,107860.0,107850.0,0.01714263]
[1751638609489,2.03123493,107860.0,107850.0,1e-08]
[1751638609793,0.1853988,107840.0,107830.0,0.20325315]
[1751638610094,0.185416,107830.0,107820.0,0.2781368]
[1751638610293,0.98415807,107830.0,107820.0,0.4954339]
[1751638610498,0.98415807,107830.0,107820.0,0.2954339]
[1751638610499,1.36415807,107830.0,107820.0,0.2954339]
[1751638610690,1.3644063,107830.0,107820.0,0.1854339]
[1751638610889,0.95686423,107830.0,107820.0,0.1854339]
[1751638611695,0.99006423,107830.0,107820.0,0.1854339]
[1751638611895,0.99106423,107830.0,107820.0,0.1864339]
[1751638612891,0.99606423,107830.0,107820.0,0.1874339]
[1751638613091,0.61606423,107830.0,107820.0,0.1874339]
[1751638613299,0.99506423,107830.0,107820.0,0.1864339]
[1751638613492,0.99506423,107830.0,107820.0,0.1874339]
[1751638613493,1.00006423,107830.0,107820.0,0.1874339]
[1751638614594,0.63950852,107830.0,107820.0,0.1874339]
[1751638614796,0.97950852,107830.0,107820.0,0.1874339]
[1751638614998,0.63950852,107830.0,107820.0,0.1874339]
[1751638615399,0.63950852,107830.0,107820.0,0.4474339]
[1751638615597,1.53710852,107830.0,107820.0,0.4779339]
[1751638615794,1.53710852,107830.0,107820.0,0.4474339]
[1751638616196,1.51766423,107830.0,107820.0,0.4474339]
[1751638617392,1.87766423,107830.0,107820.0,0.262]
[1751638617612,2.30456359,107830.0,107820.0,0.002]
[1751638617797,0.1854339,107820.0,107810.0,0.01730468]
[1751638617997,1.38637544,107820.0,107810.0,0.01730468]
[1751638618204,0.97918213,107820.0,107810.0,0.01730468]
[1751638618996,0.98218213,107820.0,107810.0,0.01830468]
[1751638619301,0.98218213,107820.0,107810.0,0.20375578]
[1751638619996,0.98618213,107820.0,107810.0,0.01930468]
[1751638620302,0.98618213,107820.0,107810.0,0.20475578]
[1751638620904,1.39362367,107820.0,107810.0,0.20475578]
[1751638621199,1.82112767,107820.0,107810.0,0.002]
[1751638621395,0.1854511,107810.0,107800.0,0.0499]
[1751638621597,2.23715264,107810.0,107800.0,0.0499]
[1751638621801,2.23740087,107810.0,107800.0,0.0499]
[1751638622698,0.93139933,107810.0,107800.0,0.0499]
[1751638622900,2.5081476,107810.0,107800.0,0.0509]
[1751638623197,2.10270606,107810.0,107800.0,0.2363683]
[1751638623398,0.95246606,107810.0,107800.0,0.2363683]
[1751638623702,1.85438606,107810.0,107800.0,0.2373683]
[1751638623997,0.95546606,107810.0,107800.0,0.2573683]
[1751638624202,0.70639933,107810.0,107800.0,0.94480984]
[1751638624392,1.60551933,107810.0,107800.0,0.5373683]
[1751638624792,1.51551933,107810.0,107800.0,0.2373683]
[1751638624996,1.61551933,107810.0,107800.0,0.5373683]
[1751638625301,0.71639933,107810.0,107800.0,0.5373683]
[1751638625700,1.61567933,107810.0,107800.0,0.5373683]
[1751638626703,1.61567933,107810.0,107800.0,0.5473683]
[1751638626704,1.60567933,107810.0,107800.0,0.5473683]
[1751638627004,1.89567933,107810.0,107800.0,0.2473683]
[1751638627400,1.52567933,107810.0,107800.0,0.5573683]
[1751638627594,1.51567933,107810.0,107800.0,0.2373683]
[1751638627799,1.52567933,107810.0,107800.0,0.5473683]
[1751638628408,1.52499933,107810.0,107800.0,0.5473683]
[1751638630113,1.83499933,107810.0,107800.0,0.3573683]
[1751638630713,1.51487933,107810.0,107800.0,0.4973683]
[1751638631100,1.52487933,107810.0,107800.0,0.4973683]
[1751638633203,1.86487933,107810.0,107800.0,0.0519]
[1751638633406,0.1854683,107800.0,107790.0,0.01950057]
[1751638633706,1.43130984,107800.0,107790.0,0.20498607]
[1751638633905,2.08867219,107800.0,107790.0,0.01950057]
[1751638634107,0.1855027,107780.0,107770.0,0.29560801]
[1751638634310,1.85192876,107780.0,107770.0,0.43560801]
[1751638634510,1.91622876,107780.0,107770.0,0.43560801]
[1751638634700,2.25622876,107780.0,107770.0,0.43560801]
[1751638635198,0.61085093,107780.0,107770.0,0.43560801]
[1751638635398,0.59227513,107790.0,107780.0,0.1855027]
[1751638635399,0.01912644,107790.0,107780.0,0.1855027]
[1751638635701,0.7496315,107820.0,107810.0,0.20289125]
[1751638635901,0.7596315,107820.0,107810.0,0.48289125]
[1751638636497,0.7132689,107820.0,107810.0,0.50289125]
[1751638636697,1.6135089,107820.0,107810.0,0.50289125]
[1751638637407,0.7132689,107820.0,107810.0,0.50289125]
[1751638637608,1.6133089,107820.0,107810.0,0.50289125]
[1751638638001,1.566948,107820.0,107810.0,0.50289125]
[1751638638309,1.5205887,107820.0,107810.0,0.50289125]
[1751638638609,1.5205887,107820.0,107810.0,0.94046908]
[1751638639002,2.24736653,107820.0,107810.0,0.31744015]
[1751638639306,2.24736653,107820.0,107810.0,0.20289125]
[1751638640013,1.8435887,107820.0,107810.0,0.28289125]
[1751638640304,1.4891339,107820.0,107810.0,0.88966908]
[1751638640513,1.4891339,107820.0,107810.0,0.96146908]
[1751638640807,1.4918139,107820.0,107810.0,0.96246908]
[1751638641112,1.5229139,107820.0,107810.0,0.96246908]
[1751638641409,1.5229139,107820.0,107810.0,0.55569125]
[1751638641608,1.52316213,107820.0,107810.0,0.55569125]
[1751638642417,1.52316213,107820.0,107810.0,0.96246908]
[1751638642709,1.30662823,107820.0,107810.0,0.96246908]
[1751638642902,0.01624823,107820.0,107810.0,1.04326908]
[1751638643098,0.00624823,107820.0,107810.0,1.7971144]
[1751638643311,0.00624823,107820.0,107810.0,1.81568583]
[1751638643606,0.00624823,107820.0,107810.0,1.43568583]
[1751638643815,1.44984213,107820.0,107810.0,0.668108]
[1751638644008,1.90101996,107820.0,107810.0,0.5778418]
[1751638644208,1.53824213,107820.0,107810.0,0.31844015]
[1751638644511,1.86824213,107820.0,107810.0,0.50389125]
[1751638644812,1.91824213,107820.0,107810.0,0.50389125]
[1751638645013,1.53624213,107820.0,107810.0,0.21389125]
[1751638645208,1.53624213,107820.0,107810.0,0.011]
[1751638645414,2.32301996,107820.0,107810.0,0.01827364]
[1751638645619,1.91624213,107820.0,107810.0,0.01827364]
[1751638645800,2.32201996,107820.0,107810.0,0.01827364]
[1751638646005,2.32501996,107820.0,107810.0,0.01927364]
[1751638646202,2.51052396,107820.0,107810.0,0.01927364]
[1751638646604,2.51052396,107820.0,107780.0,0.67799923]
[1751638646605,0.1854855,107790.0,107780.0,0.48429125]
[1751638646911,1.4439655,107790.0,107780.0,0.78429125]
[1751638647113,1.8682655,107790.0,107780.0,0.55945325]
[1751638647413,1.5282655,107790.0,107780.0,0.55945325]
[1751638647604,1.8482655,107790.0,107780.0,0.37395055]
[1751638647806,1.86775583,107790.0,107780.0,0.37395055]
[1751638648013,1.86775583,107790.0,107780.0,0.4855027]
[1751638648814,1.86875583,107790.0,107780.0,0.4865027]
[1751638649313,1.86975583,107790.0,107780.0,0.4895027]
[1751638650217,1.86975583,107790.0,107780.0,0.304]
[1751638650410,0.1855027,107780.0,107770.0,0.09129016]
[1751638650709,0.1855027,107780.0,107770.0,0.01733961]
[1751638650710,1.39908053,107780.0,107770.0,0.01733961]
[1751638650910,0.9923027,107780.0,107770.0,0.01733961]
[1751638651110,1.39908053,107780.0,107770.0,0.01733961]
[1751638651512,0.9923027,107780.0,107770.0,0.01733961]
[1751638651814,1.39908053,107780.0,107770.0,0.01733961]
[1751638652014,1.40108053,107780.0,107770.0,0.01833961]
[1751638652215,1.9012627,107780.0,107770.0,0.08833961]
[1751638652609,1.9022627,107780.0,107770.0,0.01933961]
[1751638652915,2.30904053,107780.0,107770.0,0.01933961]
[1751638653310,2.30804053,107780.0,107770.0,0.01833961]
[1751638653616,2.31004053,107780.0,107770.0,0.01833961]
[1751638654611,1.9032627,107780.0,107770.0,0.01833961]
[1751638654816,2.31004053,107780.0,107770.0,0.01833961]
[1751638655017,0.34389642,107770.0,107760.0,0.1855354]
[1751638655210,1.55937425,107770.0,107760.0,0.1855354]
[1751638655408,0.1855371,107760.0,107750.0,0.29806064]
[1751638655615,0.1855544,107750.0,107740.0,0.16673375]
[1751638655817,1.36113223,107750.0,107740.0,0.37229625]
[1751638656014,0.95460263,107750.0,107740.0,0.37229625]
[1751638656213,0.99460263,107750.0,107740.0,0.4683457]
[1751638656509,0.63460263,107750.0,107740.0,0.4683457]
[1751638656820,0.94460263,107750.0,107740.0,0.5115457]
[1751638657116,0.54660263,107750.0,107740.0,0.96272353]
[1751638657518,0.18580263,107750.0,107740.0,0.5559457]
[1751638657721,0.54660263,107750.0,107740.0,0.96272353]
[1751638658819,0.54760263,107750.0,107740.0,0.96272353]
[1751638659017,0.54860263,107750.0,107740.0,0.96672353]
[1751638659316,0.54860263,107750.0,107740.0,0.4671625]
[1751638659517,0.59210263,107750.0,107740.0,0.87394033]
[1751638659818,0.91310263,107750.0,107740.0,0.4671625]
[1751638660119,0.95840263,107750.0,107740.0,0.4671625]
[1751638660314,1.28244823,107750.0,107740.0,0.87394033]
[1751638660508,1.80800263,107750.0,107740.0,0.87394033]
[1751638660710,1.45720263,107750.0,107740.0,0.87394033]
[1751638660910,1.47720263,107750.0,107740.0,0.87394033]
[1751638661114,1.46800263,107750.0,107740.0,0.4671625]
[1751638661320,1.10720263,107750.0,107740.0,0.87394033]
[1751638661720,1.46800263,107750.0,107740.0,0.87394033]
[1751638661921,1.47260263,107750.0,107740.0,0.87394033]
[1751638662119,1.47260263,107750.0,107740.0,0.4671625]
[1751638662314,1.47260263,107750.0,107740.0,0.87394033]
[1751638662515,1.28704823,107750.0,107740.0,0.87394033]
[1751638663322,1.28704823,107750.0,107740.0,0.4671625]
[1751638663523,0.92632823,107750.0,107740.0,0.87394033]
[1751638663821,1.11196263,107750.0,107740.0,0.87394033]
[1751638664025,0.92640823,107750.0,107740.0,0.87394033]
[1751638664217,1.28720823,107750.0,107740.0,0.87394033]
[1751638664524,2.27674036,107750.0,107740.0,0.3795715]
[1751638664729,1.55996253,107750.0,107740.0,0.3795715]
[1751638665021,1.93996253,107750.0,107740.0,0.3795715]
[1751638666122,1.87996253,107750.0,107740.0,0.3795715]
[1751638666516,1.89996253,107750.0,107740.0,0.3795715]
[1751638670120,1.91996253,107750.0,107740.0,0.3795715]
[1751638670326,1.88996253,107750.0,107740.0,0.3795715]
[1751638670626,1.87996253,107750.0,107740.0,0.3795715]
[1751638673425,2.28674036,107750.0,107740.0,0.194]
[1751638674733,0.1855716,107740.0,107730.0,0.2783742]
[1751638674923,0.1855716,107740.0,107730.0,0.6083742]
[1751638674924,0.9951716,107740.0,107730.0,0.6083742]
[1751638675120,1.04081983,107740.0,107730.0,0.6083742]
[1751638675922,1.04181983,107740.0,107730.0,0.2823742]
[1751638676124,1.04181983,107740.0,107730.0,0.5723742]
[1751638676324,1.04281983,107740.0,107730.0,0.5723742]
[1751638676524,1.04281983,107740.0,107730.0,0.5259771]
[1751638676725,1.06281983,107740.0,107730.0,0.5259771]
[1751638677130,0.68281983,107740.0,107730.0,0.5259771]
[1751638677331,1.01281983,107740.0,107730.0,0.5259771]
[1751638678134,1.01281983,107740.0,107730.0,0.47958]
[1751638678629,1.60157983,107740.0,107730.0,0.47958]
[1751638678929,1.96157983,107740.0,107730.0,0.47958]
[1751638682228,1.60157983,107740.0,107730.0,0.47958]
[1751638682428,1.60157983,107740.0,107730.0,0.55353055]
[1751638682821,1.94157983,107740.0,107730.0,0.55353055]
[1751638683021,1.92157983,107740.0,107730.0,0.55353055]
[1751638683217,1.60157983,107740.0,107730.0,0.55353055]
[1751638683426,1.60157983,107740.0,107730.0,0.47958]
[1751638683622,1.94157983,107740.0,107730.0,0.47958]
[1751638683827,1.55341983,107740.0,107730.0,0.47958]
[1751638684030,1.55341983,107740.0,107730.0,0.52618]
[1751638684234,1.89341983,107740.0,107730.0,0.52618]
[1751638684533,1.87341983,107740.0,107730.0,0.52618]
[1751638685033,1.92341983,107740.0,107730.0,0.52618]
[1751638685230,1.88341983,107740.0,107730.0,0.52618]
[1751638685630,1.86341983,107740.0,107730.0,0.52618]
[1751638685830,1.86341983,107740.0,107730.0,0.004]
[1751638686031,2.27019766,107740.0,107730.0,0.004]
[1751638686531,0.1856059,107720.0,107710.0,0.01932712]
[1751638686722,2.16351928,107720.0,107710.0,0.23880678]
[1751638686928,2.25341928,107720.0,107710.0,0.43880678]
[1751638687130,2.2452827,107720.0,107710.0,0.43880678]
[1751638687430,1.9152827,107720.0,107710.0,0.43880678]
[1751638687628,2.2552827,107720.0,107710.0,0.43880678]
[1751638687829,1.1936827,107720.0,107710.0,0.43880678]
[1751638688034,1.5099827,107720.0,107710.0,0.51715022]
[1751638688531,0.40777783,107740.0,107730.0,0.1855886]
[1751638688532,1.5547302,107740.0,107730.0,0.1855886]
[1751638688728,1.5547302,107740.0,107730.0,0.96294537]
[1751638689035,1.5547302,107740.0,107730.0,0.64796754]
[1751638689331,1.5547302,107740.0,107730.0,0.78739897]
[1751638689332,0.9158,107740.0,107730.0,0.78739897]
[1751638689531,0.77399663,107750.0,107730.0,0.78739897]
[1751638689532,0.00024823,107750.0,107740.0,0.1855714]
[1751638689730,1.50900155,107760.0,107750.0,0.20297856]
[1751638689925,1.34937938,107760.0,107750.0,0.50297856]
[1751638690235,1.6412051,107760.0,107750.0,0.50297856]
[1751638690433,1.2804051,107760.0,107750.0,0.50297856]
[1751638690729,0.0452,107760.0,107750.0,0.95555639]
[1751638690932,0.79449162,107770.0,107760.0,0.185537]
[1751638691233,2.05055161,107770.0,107760.0,0.39603346]
[1751638691635,1.61762521,107770.0,107760.0,0.39603346]
[1751638691834,0.01859151,107770.0,107760.0,0.91281129]
[1751638692030,1.48143121,107770.0,107760.0,1.00021129]
[1751638692336,1.12663121,107770.0,107760.0,1.00021129]
[1751638692536,1.12663121,107770.0,107760.0,0.59343346]
[1751638692731,1.79743121,107770.0,107760.0,0.59343346]
[1751638692923,2.31090904,107770.0,107760.0,0.50603346]
[1751638693233,1.89413121,107770.0,107760.0,0.50603346]
[1751638693428,1.57413121,107770.0,107760.0,0.50603346]
[1751638694035,1.57113121,107770.0,107760.0,0.50603346]